Cogmind - Beta 15 @@@ ROGUE MODE // 2025.08.24 @ 12:06:01 Player: the Result: Destroyed by G-67 Veteran with Field Laser Performance ------------- Evolutions (7) 3500 Regions Visited (28) 5600 Robots Destroyed (334) 1670 Value Destroyed (13296) 13296 Prototype IDs (94) 1880 Alien Tech Used (1) 200 Bonus (8447) 8447 TOTAL SCORE: 34593 Bonus ------- High Alert Combat Kills 733 Follower Combat Kills 2531 Aligned with FarCom 300 Met Data Miner 300 Met Imprinter 300 Was Imprinted 300 Met Zhirov 300 MAIN.C Attacked Warlord 500 Warlord Defense Kills 2972 Scanned by Researcher 500 Friendly Fire -289 Cogmind --------- Core Integrity 0/1300 Matter 285/300 Energy 10/100 System Corruption 25% Temperature Cool (0) Movement Core (1050) Ox20 Location -3/Testing Parts ------- > --- POWER (3) -------- (None) > --- PROPULSION (4) --- (None) > --- UTILITY (10) ----- High-capacity Storage Unit Experimental Targeting Computer Advanced Target Analyzer Advanced Target Analyzer Graphene Brace > --- WEAPON (4) ------- Quantum Rifle Quantum Rifle Vibroblade Vibroblade > --- INVENTORY (20) --- Light Antimatter Reactor Micro Antimatter Reactor Enhanced Multireflex Exoskeleton Advanced Cryofiber Web Experimental Heat Sink Experimental Heat Sink Experimental Heat Sink Advanced Coolant Injector Long-range Tractor Beam Quantum Rifle Hardcell Cannon Hardcell Cannon Linear Accelerator Advanced Remote Datajack RU-N14's Throwing Claymores (4) Vibroblade Peak State ------------ > --- POWER ------------ Particle Reactor Vortex Chain Reactor > --- PROPULSION ------- Spiked Heavy Treads Spiked Heavy Treads > --- UTILITY ---------- Advanced Power Amplifier Improved Cryofiber Web Experimental Heat Sink High-capacity Storage Unit Spectral Analyzer Seismic Detector Experimental Targeting Computer Improved Transmission Jammer Makeshift Ablative Armor Advanced Force Field > --- WEAPON ----------- Railgun Railgun Railgun Linear Accelerator > --- INVENTORY -------- Centrium Wheel High-density Centrium Wheel Advanced Cryofiber Web Experimental Heat Sink Experimental Heat Sink Experimental Heat Sink Makeshift Sensor Array Makeshift Cloaking Device Graphene Brace Long-range Tractor Beam Quantum Rifle Quantum Rifle Vortex Shotgun Vortex Shotgun Railgun Hardcell Cannon Hardcell Cannon Advanced Remote Datajack RU-N14's Throwing Claymores RU-N14's Throwing Claymores [Rating: 155] Favorites ----------- Power Fission Core Engine Cooled Ion Engine Power Core Fission Core Reactor Vortex Chain Reactor Propulsion Wheel Treads Spiked Heavy Treads Leg Enhanced Biometal Leg Wheel Wheel Utility High-capacity Storage Unit Device Experimental Heat Sink Storage High-capacity Storage Unit Processor Improved Signal Interpreter Hackware Hacking Suite Protection Hardened Heavy Armor Plating Weapon Railgun Energy Gun Precision Beam Rifle Energy Cannon Heavy Plasma Cannon Ballistic Gun Railgun Ballistic Cannon Hardcell Cannon Launcher Thermoblaster Special Weapon Mining Laser Slashing Weapon Vibroblade Special Melee Weapon Improved Datajack Build | -11 -10 -10 -10 -9 -8 -8 -7 -7 -7 -7 -6 -6 -6 -6 -6 -5 -5 -5 -5 -5 -4 -4 -4 -4 -4 -3 -3 -3 ------- Run | Yrd Mat Min Exi Min Mat Sto Fac Low Low Zio Pro Fac Low Low Dat Pro Fac Upp Upp Zhi Pro Fac Upp Upp War Pro Res Tes Slots Evolved 14 | . . . . . 4 . 2 . . . . 2 . . . . 2 . . . . 2 . . . . 2 . Power 2 | . . . . . . . . . . . . . . . . . 1 . . . . . . . . . 1 . Propulsion 2 | . . . . . 1 . 1 . . . . . . . . . . . . . . . . . . . . . Utility 8 | . . . . . 2 . . . . . . 2 . . . . 1 . . . . 2 . . . . 1 . Weapon 2 | . . . . . 1 . 1 . . . . . . . . . . . . . . . . . . . . . Parts Attached 203 | 8 12 14 1 . 8 17 6 . . 2 1 21 1 4 . . 11 1 6 2 7 12 6 6 16 10 22 9 Power 27 | 1 3 2 . . . 3 . . . . . 2 . 1 . . 3 . . 1 . 1 1 1 1 . 4 3 Engine 8 | 1 3 1 . . . 3 . . . . . . . . . . . . . . . . . . . . . . Core 7 | . . 1 . . . . . . . . . 2 . 1 . . 3 . . . . . . . . . . . Reactor 12 | . . . . . . . . . . . . . . . . . . . . 1 . 1 1 1 1 . 4 3 Propulsion 36 | 3 3 7 . . . 1 1 . . . . 4 1 . . . 1 . . . 1 1 . 2 3 . 6 2 Treads 6 | 2 . . . . . . . . . . . . . . . . . . . . . . . . 2 . 2 . Leg 2 | . . . . . . . . . . . . . . . . . . . . . . . . . 1 . . 1 Wheel 28 | 1 3 7 . . . 1 1 . . . . 4 1 . . . 1 . . . 1 1 . 2 . . 4 1 Hover . | . . . . . . . . . . . . . . . . . . . . . . . . . . . . . Flight . | . . . . . . . . . . . . . . . . . . . . . . . . . . . . . Utility 76 | 2 3 3 . . 6 6 1 . . . 1 5 . 2 . . 3 1 4 1 4 9 3 1 7 5 9 . Device 37 | 1 1 3 . . 2 3 . . . . 1 . . 1 . . 1 1 2 . 2 8 1 1 2 4 3 . Storage 7 | 1 1 . . . 1 . 1 . . . . . . . . . . . . 1 . . . . . 1 1 . Processor 8 | . . . . . . 1 . . . . . . . . . . 1 . . . . . . . 2 . 4 . Hackware 1 | . . . . . 1 . . . . . . . . . . . . . . . . . . . . . . . Protection 23 | . 1 . . . 2 2 . . . . . 5 . 1 . . 1 . 2 . 2 1 2 . 3 . 1 . Artifact . | . . . . . . . . . . . . . . . . . . . . . . . . . . . . . Weapon 64 | 2 3 2 1 . 2 7 4 . . 2 . 10 . 1 . . 4 . 2 . 2 1 2 2 5 5 3 4 Energy Gun 28 | 2 2 1 . . 1 1 4 . . . . 4 . . . . 4 . 2 . 1 1 . 1 1 1 1 1 Energy Cannon 9 | . . . 1 . . 2 . . . . . 4 . . . . . . . . 1 . 1 . . . . . Ballistic Gun 11 | . . 1 . . 1 3 . . . . . . . . . . . . . . . . . . 2 3 1 . Ballistic Cannon 3 | . . . . . . . . . . . . . . . . . . . . . . . 1 1 . . 1 . Launcher 4 | . . . . . . 1 . . . 1 . . . . . . . . . . . . . . 2 . . . Special Weapon 2 | . 1 . . . . . . . . 1 . . . . . . . . . . . . . . . . . . Impact Weapon . | . . . . . . . . . . . . . . . . . . . . . . . . . . . . . Slashing Weapon 6 | . . . . . . . . . . . . 1 . 1 . . . . . . . . . . . 1 . 3 Piercing Weapon . | . . . . . . . . . . . . . . . . . . . . . . . . . . . . . Special Melee Weapon 1 | . . . . . . . . . . . . 1 . . . . . . . . . . . . . . . . Unidentified Prototypes 25 | . . . . . 1 5 1 . . 2 . . . . . . 2 . . 3 . . . . 6 . 3 2 Corrupted Parts 2 | . . . . . . . . . . . . . . . . . . . . . 1 . . . . . 1 . System Corruption 4 | . . . . . . . . . . . . . . . . . . . . . 2 . . . . . 2 . Parts Lost 51 | . . 4 . . . 2 . . . . . 4 1 . . . . . . . 5 . 3 8 . . 9 15 Power 11 | . . 1 . . . . . . . . . . . . . . . . . . 1 . 1 2 . . 1 5 Propulsion 15 | . . 2 . . . 1 . . . . . 2 1 . . . . . . . 1 . . 2 . . 2 4 Utility 18 | . . . . . . . . . . . . 1 . . . . . . . . 3 . 2 2 . . 6 4 Weapon 7 | . . 1 . . . 1 . . . . . 1 . . . . . . . . . . . 2 . . . 2 Highest Loss Streak 11 | . . 3 . . . 2 . . . . . 2 1 . . . . . . . 4 . 1 5 . . 5 11 To Critical Strikes 1 | . . . . . . . . . . . . . . . . . . . . . . . . . . . 1 . Average Backups 15 | 3 8 14 18 17 15 16 15 16 16 15 16 14 15 14 14 12 15 16 15 14 15 16 15 14 17 17 18 15 Power 1 | . . 2 2 2 1 1 2 2 2 1 1 1 2 1 1 1 3 3 2 1 1 . . . . . . 1 Propulsion 1 | 1 . 2 3 3 2 . . . . . . . . . . . 1 2 2 2 1 2 2 . . 2 1 . Utility 6 | . 3 7 8 9 7 8 8 8 7 6 6 5 5 5 5 5 5 6 6 6 6 5 4 5 7 7 7 6 Weapon 6 | . 3 3 4 3 3 5 5 6 6 8 9 7 7 5 7 5 4 4 4 3 4 6 8 8 8 7 8 6 Tool/Special . | . . . . . . . . . . . . . . . . . . . . . . . . . . . . . Unused Backups 44 | . 2 . 2 . . 9 1 . 1 2 . 4 . 2 . . 5 . 3 . 1 2 2 . 1 1 . 6 Power 14 | . . . . . . 3 . . . 1 . 1 . 1 . . 4 . 3 . . . . . . . . 1 Propulsion 3 | . 1 . . . . 2 . . . . . . . . . . . . . . . . . . . . . . Utility 13 | . . . . . . . 1 . 1 . . 2 . . . . 1 . . . 1 2 1 . 1 1 . 2 Weapon 12 | . 1 . 2 . . 4 . . . 1 . 1 . 1 . . . . . . . . . . . . . 2 Tool/Special 2 | . . . . . . . . . . . . . . . . . . . . . . . 1 . . . . 1 Average Slot Usage (%) 88 | . 100 95 94 85 93 99 90 100 100 99 95 89 86 85 62 79 80 81 80 82 80 83 85 74 79 84 79 82 Engine 2 | . 14 5 . . . 8 7 7 7 7 7 . . . . . . . . . . . . . . . . . Core 3 | . . 8 14 14 9 . . . . . . 5 6 6 6 6 10 11 11 11 5 . . . . . . . Reactor 2 | . . . . . . . . . . . . . . . . . . . . . 4 9 10 5 5 5 5 12 Treads 3 | . 21 . . . . . . . . . . . . . . . . . . . . . . . 3 10 8 . Wheel 15 | . 6 25 28 28 25 26 23 30 30 30 30 22 20 20 20 20 11 11 11 11 10 10 10 9 6 . 1 18 Device 18 | . 12 12 14 14 16 15 14 14 14 15 15 13 13 13 13 13 15 17 15 17 16 29 30 35 27 25 24 14 Storage 7 | . 14 14 14 14 9 9 7 7 7 7 7 6 6 6 6 6 5 5 5 5 5 5 5 5 5 5 4 4 Processor 5 | . . . . . . 8 7 7 7 7 7 6 6 6 6 6 5 5 3 . . . . . 8 10 9 14 Protection 4 | . 1 . . . 7 2 . . . . . 7 6 6 6 6 5 5 7 11 10 5 8 2 3 5 3 . Energy Gun 14 | . 27 22 8 . 10 3 19 30 30 29 20 18 13 12 1 1 13 16 17 17 21 21 15 10 8 . 1 4 Energy Cannon 2 | . . . 5 14 1 2 . . . . . 6 13 13 . 13 7 4 1 5 1 . . 1 . . . . Ballistic Gun 4 | . . 4 8 . 10 18 8 . . . . . . . . . . . . . . . . . 3 10 14 . Launcher 1 | . . . . . . . . . . . 4 . . . . 3 . . 1 . . . . . 2 9 . . Peak Build Rating 155 | 7 8 18 33 33 43 51 46 46 46 49 48 68 67 67 60 60 87 89 92 93 99 110 113 110 144 142 155 134 Average Rating 72 | 5 7 12 23 32 31 39 43 46 45 45 46 57 61 65 42 58 79 86 89 91 94 106 106 91 123 136 139 122 On Entrance 64 | . 7 8 18 33 33 37 40 46 46 46 46 45 61 67 60 60 60 86 89 90 93 87 108 110 88 139 137 124 Naked Turns . | . . . . . . . . . . . . . . . . . . . . . . . . . . . . . Heaviest Build 146 | 15 51 55 64 64 72 71 61 61 61 64 65 113 101 105 101 103 119 119 117 114 114 110 115 111 138 133 146 121 Greatest Support 150 | 20 40 32 20 20 30 30 46 46 46 46 46 46 48 48 48 48 56 56 56 56 56 56 56 56 150 150 150 68 Greatest Overweight (x) 16 | . 4 16 3 3 3 3 2 1 1 1 1 3 3 2 2 2 2 2 2 2 3 1 2 2 4 . 4 2 Average Overweight (x) 1 | . . 2 2 3 2 1 1 1 1 1 1 1 2 1 1 1 1 1 1 1 1 1 1 1 1 . . 1 Largest Inventory Capacity 20 | 8 20 20 20 20 20 20 20 20 20 20 20 20 20 20 20 20 20 20 20 20 20 20 20 20 20 20 20 20 Average Capacity 19 | 7 11 20 20 20 20 20 20 20 20 20 20 20 20 20 20 20 20 20 20 20 20 20 20 20 20 20 20 20 Most Carried 20 | 6 12 18 20 20 20 20 20 20 20 20 20 20 20 20 17 15 20 20 20 20 20 20 20 20 20 20 20 20 Average Carried 18 | 3 8 14 18 19 18 19 19 20 19 19 19 19 20 18 16 13 18 19 18 18 19 19 18 16 19 19 18 15 Final Capacity 20 | 8 20 20 20 20 20 20 20 20 20 20 20 20 20 20 20 20 20 20 20 20 20 20 20 20 20 20 20 20 Final Carried 20 | 6 12 18 20 20 20 20 20 20 20 20 20 20 20 13 13 13 20 20 17 20 17 20 20 15 19 20 14 17 Class Distribution -------------------- 17% | Scavenger-Skirmisher 13% | Derelict-Tank 10% | Skirmisher 10% | Pyromaniac-Skirmisher 10% | Mutant 9% | Messiah-Tank 9% | Scavenger-Mutant 6% | Commander-Tank 3% | Scavenger-Tank Dominant Class ---------------- Mutant | -10/Materials Scavenger-Mutant | -10/Mines Scavenger-Mutant | -10/Exiles Scavenger-Mutant | -9/Mines Scavenger-Skirmisher | -8/Materials Scavenger-Skirmisher | -8/Storage Scavenger-Skirmisher | -7/Factory Scavenger-Skirmisher | -7/Lower Caves Scavenger-Skirmisher | -7/Lower Caves Scavenger-Skirmisher | -7/Zion Scavenger-Skirmisher | -6/Proximity Caves Pyromaniac-Skirmisher | -6/Factory Pyromaniac-Skirmisher | -6/Lower Caves Pyromaniac-Skirmisher | -6/Lower Caves Mutant | -6/Data Miner Skirmisher | -5/Proximity Caves Skirmisher | -5/Factory Skirmisher | -5/Upper Caves Skirmisher | -5/Upper Caves Messiah-Tank | -5/Zhirov Messiah-Tank | -4/Proximity Caves Messiah-Tank | -4/Factory Derelict-Tank | -4/Upper Caves Mutant | -4/Upper Caves Commander-Tank | -4/Warlord Derelict-Tank | -3/Proximity Caves Derelict-Tank | -3/Research Scavenger-Mutant | -3/Testing Resources | -11 -10 -10 -10 -9 -8 -8 -7 -7 -7 -7 -6 -6 -6 -6 -6 -5 -5 -5 -5 -5 -4 -4 -4 -4 -4 -3 -3 -3 ----------- Run | Yrd Mat Min Exi Min Mat Sto Fac Low Low Zio Pro Fac Low Low Dat Pro Fac Upp Upp Zhi Pro Fac Upp Upp War Pro Res Tes Matter Collected 7875 | 280 311 247 10 23 198 838 102 60 20 50 155 474 90 167 . 68 453 100 258 . 173 260 204 177 541 625 1662 329 Remotely 745 | . . . . . . . . . . . . . . . . . . . . . . . . . . . 745 . Salvage Created 14876 | 111 892 643 . 121 372 1219 295 95 143 . 180 1596 143 220 . 42 730 341 169 . 388 326 507 638 1042 2257 1912 494 Parts 632 | 10 55 32 . 18 25 73 10 5 4 . 3 66 8 3 . 4 25 11 12 . 9 22 11 12 34 70 88 22 Haulers Intercepted 13 | . 2 . . . 1 6 . . . . . 3 . . . . 1 . . . . . . . . . . . Recyclers Shooed 11 | . 1 3 . . . 1 . . . . . 1 . . . . . . . . . 1 . . . 1 2 1 Parts Field Recycled . | . . . . . . . . . . . . . . . . . . . . . . . . . . . . . Retrieved Matter . | . . . . . . . . . . . . . . . . . . . . . . . . . . . . . Parts Self-Destructed 151 | . . . . . . . . 8 4 . 6 . 8 2 . 4 . 14 13 . 22 . 11 11 . 48 . . Prevented 10 | . . . . . . . . . 2 . 4 . . . . . . . . . . . . 1 . 3 . . Kills | -11 -10 -10 -10 -9 -8 -8 -7 -7 -7 -7 -6 -6 -6 -6 -6 -5 -5 -5 -5 -5 -4 -4 -4 -4 -4 -3 -3 -3 ------- Run | Yrd Mat Min Exi Min Mat Sto Fac Low Low Zio Pro Fac Low Low Dat Pro Fac Upp Upp Zhi Pro Fac Upp Upp War Pro Res Tes Combat Hostiles Destroyed 239 | . 17 5 . 8 6 18 2 2 3 . 8 17 4 4 . 5 8 5 5 . 8 11 10 14 21 30 20 8 Melee 4 | . . . . . . . . . . . . . . . . . . . . . . . . . . . . 4 Guns 122 | . 16 5 . 1 3 8 2 2 3 . . 9 3 1 . . 3 4 1 . 6 11 8 13 3 2 16 2 Cannons 30 | . . . . 3 2 5 . . . . . 5 1 2 . 1 5 . . . . . . . 4 . . 2 AOE 65 | . 1 . . 4 1 4 . . . . 8 1 . . . 4 . 1 2 . . . . . 9 26 4 . Classes Destroyed 26 | 2 7 1 . . 2 1 . . . . . 1 . 2 . 1 . . . . 2 . . . 3 1 1 2 Worker 25 | . 6 6 . . . 1 1 . . . . 8 . . . . . . . . . 1 . . . . . 2 Builder 17 | . 1 1 . 3 2 . . . . . . 4 . . . . 1 . . . . . . . . 2 3 . Tunneler 8 | 2 1 3 . . . . . . . . . 2 . . . . . . . . . . . . . . . . Hauler 12 | . 2 . . . 1 6 . . . . . 2 . . . . 1 . . . . . . . . . . . Recycler 17 | 1 2 3 . . . . 2 . . . . 1 . . . . 1 . . . . . . . . 1 5 1 Mechanic 1 | . . 1 . . . . . . . . . . . . . . . . . . . . . . . . . . Operator 5 | . 1 . . . 1 . . . . . . 1 . . . . . . . . . . . . . . 1 1 Drone 2 | . . . . . . . . . . . . . . . . 2 . . . . . . . . . . . . Watcher 8 | . 1 . . . 1 1 . . . . . 1 . . . . 1 . . . . . . . . 2 1 . Swarmer 62 | . 12 3 . 6 . . . 1 . . 2 . 4 . . . . . 1 . 3 9 3 6 . 4 4 4 Saboteur 4 | . . . . . . . . . . . . . . . . . . . . . . . . . 2 1 1 . Grunt 96 | . 5 2 . 2 3 10 2 . 3 . 6 9 . 2 . 3 4 3 . . 2 . 4 4 14 15 3 . Brawler 3 | . . . . . . . . . . . . . . 1 . . . . . . . . . 1 . . 1 . Duelist 4 | . . . . . . . . . . . . . . . . . . . . . 1 . . . . 3 . . Protector 1 | . . . . . . . . . . . . . . . . . . . . . . . . . . 1 . . Researcher 1 | . . . . . . . . . . . . . . . . . . . . . . . . . . . . 1 Sentry 24 | . . . . . 2 5 . 1 . . . 3 . . . . . 2 1 . 1 . 1 1 . 5 2 . Demolisher 2 | . . . . . . 2 . . . . . . . . . . . . . . . . . . . . . . Specialist 3 | . . . . . . . . . . . . . . . . . . . . . . . . . . . . 3 Hunter 11 | . . . . . 1 1 . . . . . . . . . . 1 . 2 . . . . 2 . 2 2 . Programmer 20 | . . . . . . . . . . . . 5 . . . . 3 . . . . 2 2 . 2 . 6 . Heavy 1 | . . . . . . . . . . . . . . . . . . . . . . . . . . . 1 . Behemoth 1 | . . . . . . . . . . . . . . . . . . . . . 1 . . . . . . . Striker 2 | . . . . . . . . . . . . . . . . . . . . . . . . . 1 . . 1 Executioner 2 | . . . . . . . . . . . . . . . . . . . . . . . . . 2 . . . Z-Courier 2 | . . . . . . . . . . . . 1 . . . . . . . . . . . . . . 1 . Master Thief 2 | . . . . . . . . . . . . . . 1 . . . . 1 . . . . . . . . . Best Kill Streak 11 | 2 4 3 . 8 6 6 2 2 3 . 4 4 4 2 . 3 3 3 1 . 3 5 3 6 7 5 11 4 Combat Bots Only 7 | . 3 3 . 5 3 6 2 2 3 . 4 3 4 2 . 3 2 3 1 . 3 5 3 6 7 4 6 4 Max Kills in Single Turn 5 | 1 1 1 . 3 3 3 1 1 1 . 3 4 1 1 . 1 1 1 1 . 1 2 1 1 3 2 5 2 Gunslinging 1 | . . . . . . . . . . . . . . . . . . . . . . 1 . . . . . . Exploded 3 | . 1 . . 1 1 2 . . . . 3 1 . . . 1 . 1 1 . . . . . 2 2 2 . Melee 1 | . . . . . . . . . . . . . . . . . . . . . . . . . . . . 1 Uniques/NPCs Destroyed . | . . . . . . . . . . . . . . . . . . . . . . . . . . . . . Combat | -11 -10 -10 -10 -9 -8 -8 -7 -7 -7 -7 -6 -6 -6 -6 -6 -5 -5 -5 -5 -5 -4 -4 -4 -4 -4 -3 -3 -3 -------- Run | Yrd Mat Min Exi Min Mat Sto Fac Low Low Zio Pro Fac Low Low Dat Pro Fac Upp Upp Zhi Pro Fac Upp Upp War Pro Res Tes Hostile Shots Fired 1166 | . 83 43 . 18 2 52 . 22 3 . 12 114 22 29 . 2 19 2 8 . 74 47 49 105 51 54 220 135 Missed 343 | . 25 11 . 4 1 18 . 7 2 . 7 40 5 8 . 1 2 . 2 . 19 14 16 33 17 12 64 35 Hits 823 | . 58 32 . 14 1 34 . 15 1 . 5 74 17 21 . 1 17 2 6 . 55 33 33 72 34 42 156 100 Melee 31 | . . . . . . . . . . . . . . 6 . . . . 3 . . . 2 . 3 . 6 11 Projectile 792 | . 58 32 . 14 1 34 . 15 1 . 5 74 17 15 . 1 17 2 3 . 55 33 31 72 31 42 150 89 AOE 7 | . . . . . . 2 . . . . . . . . . . . . . . . 2 . . 3 . . . Critical Strikes 41 | . . . . . . 4 . . . . . 5 . 1 . . 1 . . . 3 2 3 2 . 1 10 9 Actively Blocked 15 | . . . . . . . . . . . . . . . . . . . . . . 1 1 2 . . 2 9 Part Disruptions 2 | . . . . . . . . . . . . . . . . . . . . . . . . . 1 . 1 . Damage Taken 15039 | . 583 381 . 113 13 683 . 120 11 . 57 1393 264 299 . 23 400 39 400 . 1226 755 565 1342 838 596 2406 2532 Core 2646 | . 71 86 . 36 13 103 . 11 . . 19 91 15 . . . . . 290 . 89 86 43 169 137 83 307 997 Absorbed by Shields 1585 | . . . . . . . . . . . . . . . . . . . . . . . . . 112 286 1187 . Redirected to Shielding 633 | . . . . . . . . . . . . . . . . . . . 19 . 147 89 201 63 . . 88 26 Ignored by Resistances 24 | . . . . . . 6 . 9 2 . . 7 . . . . . . . . . . . . . . . . Regen/Repaired (Parts) 848 | . . . . . . . . . . . . . . . . . 546 . . . . . . . 302 . . . Core Remaining (%) 71 | 100 . . . 22 . 78 . . . . 95 . . . . 87 . . . . 62 . . . . 54 . . Volleys Fired 891 | 6 94 65 . 9 19 95 7 6 7 1 11 58 29 47 . 14 39 13 17 . 22 27 31 51 37 90 79 17 Largest 4 | 2 2 2 . 1 3 3 4 4 4 4 4 4 4 4 . 2 4 4 4 . 4 4 4 3 4 2 4 4 Hottest 520 | 90 100 125 . 100 136 136 244 244 244 244 244 330 330 330 . 180 340 340 310 . 318 308 308 251 520 520 160 230 Shots Fired 2107 | 12 181 127 . 9 29 203 24 24 28 4 17 180 64 119 . 15 92 26 53 . 88 79 90 99 71 176 265 32 Gun 1558 | 12 174 124 . 1 20 144 24 24 28 4 8 149 15 25 . . 45 13 42 . 82 79 87 84 19 90 248 17 Cannon 355 | . . . . 8 3 31 . . . . . 31 49 94 . 2 47 10 6 . 6 . . 15 24 . 14 15 Launcher 147 | . . . . . . . . . . . 9 . . . . 13 . 3 5 . . . 3 . 28 86 . . Special 47 | . 7 3 . . 6 28 . . . . . . . . . . . . . . . . . . . . 3 . Kinetic 558 | . . 17 . 1 13 119 3 . . . . . . . . . . . . . . . . 9 43 90 248 15 Thermal 1430 | 6 156 110 . 8 14 71 21 24 28 4 8 180 64 119 . 2 92 23 48 . 88 79 87 84 28 86 . . Explosive 36 | . . . . . . . . . . . 9 . . . . 13 . 3 5 . . . 3 . . . 3 . Electromagnetic 52 | 6 25 . . . 2 13 . . . . . . . . . . . . . . . . . 6 . . . . Entropic 31 | . . . . . . . . . . . . . . . . . . . . . . . . . . . 14 17 Robot Hit Streak 50 | 3 6 7 . 3 10 10 6 13 16 . 13 21 2 8 . 3 8 6 6 . 15 13 15 13 13 50 36 6 Robot Miss Streak 5 | 2 5 5 . 2 2 5 2 3 2 . . 2 5 3 . . 3 2 3 . 4 3 5 4 2 2 4 2 Penetration Max 2 | . . . . . . . . . . . . . . . . . . . . . . . . . 1 2 1 . Secondary Targets 25 | . 3 1 . . . . . . . . . . . . . . . . . . 2 7 3 4 . . 5 . Max Gunslinging Chain 2 | . 1 1 . . . . . . . . . . . . . . . . . . 1 2 1 1 . . 1 . Shots Hit Robots 1137 | 6 89 66 . 4 16 92 13 14 18 . 8 115 7 31 . 1 41 11 13 . 60 36 52 55 39 131 187 32 Core Hits 614 | 3 39 30 . 10 11 40 8 5 6 . 21 63 6 6 . 11 19 11 10 . 21 20 23 32 38 91 68 22 Critical Kills 7 | . . . . . . 1 . . . . . . . . . . . . . . . 1 1 2 . 2 . . Critical Parts Destroyed 12 | . . . . . 1 . . . . . . . . . . . . . . . . . . 1 1 3 3 3 Critical Strikes 60 | . 7 8 . . 2 1 1 1 . . . 14 . 3 . . . . . . 1 1 1 3 1 5 5 6 Burn 35 | . 7 8 . . . . 1 1 . . . 14 . 3 . . . . . . 1 . . . . . . . Meltdown 1 | . . . . . . 1 . . . . . . . . . . . . . . . . . . . . . . Destroy 16 | . . . . . 2 . . . . . . . . . . . . . . . . 1 1 3 1 5 3 . Blast 2 | . . . . . . . . . . . . . . . . . . . . . . . . . . . 1 1 Sever 3 | . . . . . . . . . . . . . . . . . . . . . . . . . . . 1 2 Detonate 3 | . . . . . . . . . . . . . . . . . . . . . . . . . . . . 3 Melee Attacks 30 | . . . . . . . . . . . . 6 . . . . . 4 . . . . . . . . . 20 Impact . | . . . . . . . . . . . . . . . . . . . . . . . . . . . . . Slashing 25 | . . . . . . . . . . . . 5 . . . . . . . . . . . . . . . 20 Piercing . | . . . . . . . . . . . . . . . . . . . . . . . . . . . . . Sneak Attacks 6 | . . . . . . . . . . . . 1 . . . . . 4 . . . . . . . . . 1 Combat Hostiles . | . . . . . . . . . . . . . . . . . . . . . . . . . . . . . Follow-up Attacks 5 | . . . . . . . . . . . . . . . . . . . . . . . . . . . . 5 Damage Inflicted 42361 | 83 1204 1087 . 900 933 2502 230 251 324 . 1353 3591 248 879 . 717 1426 492 683 . 1920 1226 1645 1612 2941 6788 6606 2720 Guns 23716 | 83 1177 1087 . 26 315 1539 230 251 324 . 147 2100 89 395 . . 655 214 459 . 1920 1226 1496 1528 368 1646 5255 1186 Cannons 4507 | . . . . 385 218 423 . . . . . 967 159 484 . 33 771 . 31 . . . . 84 580 . 184 188 Explosions 13430 | . 27 . . 489 400 513 . . . . 1206 524 . . . 684 . 278 193 . . . 149 . 1984 5142 1080 761 Melee 585 | . . . . . . . . . . . . . . . . . . . . . . . . . . . . 585 Ramming 12 | . . . . . . 3 . . . . . . . . . . . . . . . . . . 9 . . . Kinetic 9181 | . . 127 . 26 201 1203 31 . . . . . . . . . . . . . . . . . 948 1646 4811 188 Thermal 26398 | 38 997 960 . 874 708 1088 199 251 324 . 147 3591 248 879 . 33 1426 214 490 . 1920 1226 1496 1528 1984 5142 . 635 Explosive 3590 | . . . . . . . . . . . 1206 . . . . 684 . 278 193 . . . 149 . . . 1080 . Electromagnetic 694 | 45 207 . . . 24 208 . . . . . . . . . . . . . . . . . 84 . . . 126 Impact . | . . . . . . . . . . . . . . . . . . . . . . . . . . . . . Slashing 672 | . . . . . . . . . . . . . . . . . . . . . . . . . . . 87 585 Piercing . | . . . . . . . . . . . . . . . . . . . . . . . . . . . . . Entropic 1814 | . . . . . . . . . . . . . . . . . . . . . . . . . . . 628 1186 Highest Corruption 25 | . . . . . . . . . . . . 11 11 11 11 11 2 2 2 2 4 3 7 7 7 . 23 25 Average Corruption 6 | . . . . . . . . . . . . 3 11 11 11 11 2 2 2 2 3 1 4 7 7 . 16 23 Corruption Purged . | . . . . . . . . . . . . . . . . . . . . . . . . . . . . . Corruption Blocked . | . . . . . . . . . . . . . . . . . . . . . . . . . . . . . Effects 188 | . . . . . . . . . . . . 17 17 30 5 14 9 5 4 3 11 4 12 19 1 . 24 13 Message Errors 45 | . . . . . . . . . . . . 3 6 6 1 5 3 1 2 1 1 . 2 6 . . 4 4 Matter Fused 45 | . . . . . . . . . . . . 2 6 6 1 3 2 . 1 2 2 1 4 6 . . 4 5 Heat Flow Errors 21 | . . . . . . . . . . . . 1 2 4 . 2 2 . . . 3 2 3 . . . 1 1 Energy Discharges 15 | . . . . . . . . . . . . 1 . 3 1 1 . 2 . . 2 . . 2 1 . 1 1 Parts Rejected 4 | . . . . . . . . . . . . 1 . 1 . . . . . . . . . 1 . . 1 . Parts Fused 2 | . . . . . . . . . . . . 1 . . . . . . . . . . . . . . 1 . Data Loss (minor) 21 | . . . . . . . . . . . . 3 . 6 . 3 1 . 1 . 2 . . 2 . . 3 . Data Loss (major) 10 | . . . . . . . . . . . . 2 . 1 1 . 1 1 . . 1 . . 1 . . 2 . Misfires 8 | . . . . . . . . . . . . . 2 1 . . . 1 . . . . 2 . . . 1 1 Alerts 4 | . . . . . . . . . . . . . 1 . 1 . . . . . . . 1 . . . 1 . Misdirections 5 | . . . . . . . . . . . . 1 . . . . . . . . . . . . . . 3 1 Weapon Failures 8 | . . . . . . . . . . . . 2 . 2 . . . . . . . 1 . 1 . . 2 . Overload Shots . | . . . . . . . . . . . . . . . . . . . . . . . . . . . . . Overflow Damage 952 | . . . . 163 69 30 . . . . 27 24 14 20 . 41 55 . 1 . . . . . 37 179 26 266 Projectiles 282 | . . . . 98 48 24 . . . . . 23 14 20 . . 55 . . . . . . . . . . . Explosions 670 | . . . . 65 21 6 . . . . 27 1 . . . 41 . . 1 . . . . . 37 179 26 266 Melee . | . . . . . . . . . . . . . . . . . . . . . . . . . . . . . Knockbacks 2 | . . . . . . . . . . . . . . . . . . . . . . . . . . . 1 1 Impact . | . . . . . . . . . . . . . . . . . . . . . . . . . . . . . Kinetic 2 | . . . . . . . . . . . . . . . . . . . . . . . . . . . 1 1 Secondary . | . . . . . . . . . . . . . . . . . . . . . . . . . . . . . Self-Inflicted Damage 284 | . 35 . . . . 51 . . . . . . . . . . . . . . . . . . . . . 198 Shots 4 | . 1 . . . . 1 . . . . . . . . . . . . . . . . . . . . . 2 Rammed 3 | . . . . . . 1 . . . . . . . . . . . . . . . . . . 2 . . . Targets Rammed 3 | . . . . . . 1 . . . . . . . . . . . . . . . . . . 2 . . . Kicked . | . . . . . . . . . . . . . . . . . . . . . . . . . . . . . Crushed . | . . . . . . . . . . . . . . . . . . . . . . . . . . . . . Highest Temperature 707 | 90 450 195 . 3 27 139 136 381 322 93 154 530 396 416 . 242 509 537 707 . 51 . 52 423 . 200 58 159 Average Temperature 112 | 47 103 67 . 3 13 34 63 161 136 57 80 153 108 114 . 94 151 179 199 . 34 . 52 151 . 123 58 44 Received Heat Transfer 2180 | . 186 162 . 18 . 288 . 33 9 . 24 339 . 153 . . . 18 27 . 181 24 60 102 88 89 124 255 Effects 37 | . 6 . . . . . . 1 . . . 10 2 . . . 3 3 11 . . . . 1 . . . . Shutdowns 6 | . . . . . . . . . . . . 1 1 . . . 1 1 2 . . . . . . . . . Energy Bleed 5 | . 2 . . . . . . . . . . . . . . . 1 . 2 . . . . . . . . . Interference 9 | . 2 . . . . . . . . . . 5 . . . . . 2 . . . . . . . . . . Matter Decay 6 | . 1 . . . . . . 1 . . . . 1 . . . 1 . 1 . . . . 1 . . . . Short Circuit 3 | . 1 . . . . . . . . . . . . . . . . . 2 . . . . . . . . . Damage (minor) 2 | . . . . . . . . . . . . 1 . . . . . . 1 . . . . . . . . . Damage (major) 4 | . . . . . . . . . . . . 3 . . . . . . 1 . . . . . . . . . Damage (core) 2 | . . . . . . . . . . . . . . . . . . . 2 . . . . . . . . . Siege Activations . | . . . . . . . . . . . . . . . . . . . . . . . . . . . . . Martial Activations . | . . . . . . . . . . . . . . . . . . . . . . . . . . . . . Shielding Activations . | . . . . . . . . . . . . . . . . . . . . . . . . . . . . . Robots Disrupted . | . . . . . . . . . . . . . . . . . . . . . . . . . . . . . Combat Hostiles . | . . . . . . . . . . . . . . . . . . . . . . . . . . . . . Robots Corrupted . | . . . . . . . . . . . . . . . . . . . . . . . . . . . . . Combat Hostiles . | . . . . . . . . . . . . . . . . . . . . . . . . . . . . . Parts Fried 1 | . 1 . . . . . . . . . . . . . . . . . . . . . . . . . . . Impact Corruptions . | . . . . . . . . . . . . . . . . . . . . . . . . . . . . . Robots Melted 21 | . 1 . . . . 1 . . . . . 3 . 1 . . 1 . 2 . 2 . 2 1 5 2 . . Combat Hostiles 18 | . . . . . . 1 . . . . . 2 . 1 . . . . 2 . 2 . 2 1 5 2 . . Parts Melted 79 | . 2 2 . . . 2 3 1 . . . 22 . 7 . . 5 1 3 . 5 1 6 6 6 7 . . Heat Transferred 43717 | 111 3367 2960 . 800 788 1436 481 592 666 . 296 7340 450 1950 . 50 1996 349 785 . 2778 1586 2136 2400 2960 7040 . 400 Parts Sabotaged 7 | . . . . . . . . . . . . . . . . . . . . . . . . . 4 . 3 . Parts Stolen 9 | . . . . . . . . . . . . . . 4 . . . . 3 . . . 2 . . . . . Parts Stripped . | . . . . . . . . . . . . . . . . . . . . . . . . . . . . . Power Chain Reactions 1 | . 1 . . . . . . . . . . . . . . . . . . . . . . . . . . . Alert | -11 -10 -10 -10 -9 -8 -8 -7 -7 -7 -7 -6 -6 -6 -6 -6 -5 -5 -5 -5 -5 -4 -4 -4 -4 -4 -3 -3 -3 ------- Run | Yrd Mat Min Exi Min Mat Sto Fac Low Low Zio Pro Fac Low Low Dat Pro Fac Upp Upp Zhi Pro Fac Upp Upp War Pro Res Tes Maximum Alert Level 3 | . . . . 1 . 3 1 . . . . 2 . . . . 1 . . . . . . . . . 3 2 Low Security (%) 63 | 100 100 100 . 73 100 43 . . . . . 34 . . . . 61 . . . . 100 . . . . 37 . Level 1 18 | . . . . 26 . 11 100 . . . . 42 . . . . 38 . . . . . . . . . 23 . Level 2 13 | . . . . . . 36 . . . . . 23 . . . . . . . . . . . . . . 14 100 Level 3 3 | . . . . . . 8 . . . . . . . . . . . . . . . . . . . . 25 . Level 4 . | . . . . . . . . . . . . . . . . . . . . . . . . . . . . . Level 5 . | . . . . . . . . . . . . . . . . . . . . . . . . . . . . . High Security . | . . . . . . . . . . . . . . . . . . . . . . . . . . . . . Max Security . | . . . . . . . . . . . . . . . . . . . . . . . . . . . . . Peak Influence 914 | 10 126 67 . 268 144 818 348 . . . . 462 . . . . 388 . . . . 128 . . . . 914 594 Initial 483 | . 3 33 . . 98 59 348 . . . . 130 . . . . 150 . . . . 3 . . . . 210 483 Average 198 | 1 44 18 . 129 94 313 295 . . . . 274 . . . . 180 . . . . 36 . . . . 425 528 Influence Increases 10669 | 15 577 300 . 334 249 1502 89 40 60 . 430 993 90 85 . 80 813 291 248 . 372 312 235 365 699 842 1314 334 Destroy 0b10 Robot/C 6060 | . 340 180 . 160 120 600 40 40 60 . 240 440 80 60 . 60 320 160 140 . 280 220 200 280 500 620 740 180 Destroy 0b10 Robot/NC 535 | 15 70 80 . 15 20 40 15 . . . . 110 . . . 10 20 . . . . 5 5 . . 50 60 20 Destroy Leader 940 | . 66 30 . 30 34 174 10 . . . 20 128 10 10 . 10 64 10 20 . 40 30 30 10 . 40 164 10 Allied During Kill 1338 | . . 5 . . . 238 . . . . 170 129 . . . . 137 121 88 . 37 . . . 109 132 172 . Successful Hack 125 | . 13 . . 6 16 29 7 . . . . 14 . . . . 36 . . . . 4 . . . . . . Select Force Hacks 60 | . 60 . . . . . . . . . . . . . . . . . . . . . . . . . . . Disable Machine 450 | . . . . 45 30 135 15 . . . . 60 . . . . 30 . . . . 15 . . . . 45 75 Anti-Garrison Action 150 | . . . . . . 150 . . . . . . . . . . . . . . . . . . . . . . Destroy Structure 486 | . 13 5 . 78 14 91 2 . . . . 67 . . . . 56 . . . . 38 . . . . 88 34 Advance Influence 150 | . . . . . . . . . . . . . . . . . 150 . . . . . . . . . . . Partial Spotted 45 | . . . . . 15 15 . . . . . . . . . . . . . . . . . . . . 15 . Lose Combat Pursuer 330 | . 15 . . . . 30 . . . . . 45 . 15 . . . . . . 15 . . 75 90 . 30 15 Influence Decreases 10172 | 10 495 363 24 80 362 876 599 206 151 . 222 780 397 146 53 80 477 407 296 172 366 196 343 203 318 1087 766 697 Entered New Map 2767 | . 2 54 24 . 156 82 419 96 19 . . 78 157 23 53 . . 125 42 172 . 3 46 4 176 557 102 377 Time Decay 6200 | 10 493 264 . 80 206 534 180 110 132 . 222 522 230 123 . 80 457 262 214 . 246 183 267 179 112 490 434 170 Lost Part 440 | . . 40 . . . 20 . . . . . 40 10 . . . . . . . 40 . 30 20 . . 90 150 Lost Ally 765 | . . 5 . . . 240 . . . . . 140 . . . . 20 20 40 . 80 10 . . 30 40 140 . Squads Dispatched 50 | . 6 1 . . 3 7 2 . . . . 10 . . . . 12 . . . . 2 . 1 . 1 4 1 Investigation 12 | . 4 . . . 1 1 . . . . . 1 . . . . 4 . . . . . . . . 1 . . Extermination 10 | . . . . . . . 1 . . . . 4 . . . . 2 . . . . 2 . . . . 1 . Reinforcement 13 | . 2 . . . 1 2 1 . . . . 2 . . . . 3 . . . . . . . . . 1 1 Assault 8 | . . 1 . . . 4 . . . . . 1 . . . . . . . . . . . 1 . . 1 . Garrison 7 | . . . . . 1 . . . . . . 2 . . . . 3 . . . . . . . . . 1 . Intercept . | . . . . . . . . . . . . . . . . . . . . . . . . . . . . . Searches Triggered . | . . . . . . . . . . . . . . . . . . . . . . . . . . . . . Data Miner Redirects 3 | . . . . . . . . . . . . . . . . . 2 . . . . . . . . . 1 . Construction Impeded 1 | . . . . . . . . . . . . 1 . . . . . . . . . . . . . . . . Haulers Reinforced 3 | . . . . . . . . . . . . 1 . . . . 2 . . . . . . . . . . . Active Scanning Responses . | . . . . . . . . . . . . . . . . . . . . . . . . . . . . . Cargo Convoy Interrupts 2 | . . . . . . . . . . . . . . . . . 1 . . . . . . . . . 1 . Stealth | -11 -10 -10 -10 -9 -8 -8 -7 -7 -7 -7 -6 -6 -6 -6 -6 -5 -5 -5 -5 -5 -4 -4 -4 -4 -4 -3 -3 -3 --------- Run | Yrd Mat Min Exi Min Mat Sto Fac Low Low Zio Pro Fac Low Low Dat Pro Fac Upp Upp Zhi Pro Fac Upp Upp War Pro Res Tes Distress Signals 13 | . 3 . . . 1 2 . . . . . 3 . . . . . . . . . . . . . . 3 1 Communications Jammed 60 | . . . . . . . . . . . . . . . . . . . . . . . . . . 11 49 . Distress Signals 56 | . . . . . . . . . . . . . . . . . . . . . . . . . . 11 45 . Times Spotted 409 | . 28 14 . 6 7 28 2 3 2 . 8 31 4 9 . 2 14 7 9 . 12 13 14 24 81 30 44 17 Peak Tracking Total 13 | . 3 3 . 3 3 6 2 3 1 . 4 5 4 7 . 3 2 5 4 . 5 5 3 9 13 4 7 8 Tactical Retreats 20 | . 2 . . . . 2 . . . . . 2 . 1 . . . . . . 1 . . 4 5 . 2 1 Traps | -11 -10 -10 -10 -9 -8 -8 -7 -7 -7 -7 -6 -6 -6 -6 -6 -5 -5 -5 -5 -5 -4 -4 -4 -4 -4 -3 -3 -3 ------- Run | Yrd Mat Min Exi Min Mat Sto Fac Low Low Zio Pro Fac Low Low Dat Pro Fac Upp Upp Zhi Pro Fac Upp Upp War Pro Res Tes Traps Triggered 14 | . 2 . . . . 4 . . . . . 5 . . . . 1 . . . . 1 . . . . 1 . Indirectly . | . . . . . . . . . . . . . . . . . . . . . . . . . . . . . Trap Hack Attempts . | . . . . . . . . . . . . . . . . . . . . . . . . . . . . . Triggered . | . . . . . . . . . . . . . . . . . . . . . . . . . . . . . Disarmed . | . . . . . . . . . . . . . . . . . . . . . . . . . . . . . Reprogrammed . | . . . . . . . . . . . . . . . . . . . . . . . . . . . . . Reused . | . . . . . . . . . . . . . . . . . . . . . . . . . . . . . Traps Extracted . | . . . . . . . . . . . . . . . . . . . . . . . . . . . . . Installed . | . . . . . . . . . . . . . . . . . . . . . . . . . . . . . Triggered . | . . . . . . . . . . . . . . . . . . . . . . . . . . . . . Machines | -11 -10 -10 -10 -9 -8 -8 -7 -7 -7 -7 -6 -6 -6 -6 -6 -5 -5 -5 -5 -5 -4 -4 -4 -4 -4 -3 -3 -3 ---------- Run | Yrd Mat Min Exi Min Mat Sto Fac Low Low Zio Pro Fac Low Low Dat Pro Fac Upp Upp Zhi Pro Fac Upp Upp War Pro Res Tes Machines Disabled 37 | . . . . 3 2 10 1 . . . . 4 . . . . 2 1 . . . 1 . . 1 4 3 5 Max in Single Turn 5 | . . . . 1 2 2 1 . . . . 2 . . . . 1 . . . . 1 . . 1 1 1 5 Garrison Access 1 | . . . . . . 1 . . . . . . . . . . . . . . . . . . . . . . Machines Repaired . | . . . . . . . . . . . . . . . . . . . . . . . . . . . . . Machines Dismantled . | . . . . . . . . . . . . . . . . . . . . . . . . . . . . . Machines Sabotaged . | . . . . . . . . . . . . . . . . . . . . . . . . . . . . . Overloaded Fab Kills . | . . . . . . . . . . . . . . . . . . . . . . . . . . . . . Hacking | -11 -10 -10 -10 -9 -8 -8 -7 -7 -7 -7 -6 -6 -6 -6 -6 -5 -5 -5 -5 -5 -4 -4 -4 -4 -4 -3 -3 -3 --------- Run | Yrd Mat Min Exi Min Mat Sto Fac Low Low Zio Pro Fac Low Low Dat Pro Fac Upp Upp Zhi Pro Fac Upp Upp War Pro Res Tes Machines Accessed 55 | . 7 1 5 1 5 8 3 . 1 1 . 1 . . 4 . 4 . . 5 . 2 . . 4 3 . . Terminals 23 | . 5 1 . 1 5 8 2 . . . . . . . . . . . . . . . . . . 1 . . Fabricators 2 | . . . . . . . . . . . . . . . . . 1 . . . . . . . . 1 . . Repair Stations 2 | . . . . . . . . . . . . . . . . . 2 . . . . . . . . . . . Recycling Units 4 | . 2 . . . . . . . . . . . . . . . . . . . . 1 . . . 1 . . Scanalyzers 1 | . . . . . . . . . . . . . . . . . . . . . . 1 . . . . . . Garrison Access 3 | . . . . . . . 1 . . . . 1 . . . . 1 . . . . . . . . . . . Total Hacks 190 | . 18 2 31 3 16 25 7 . 1 5 . 1 . . 29 . 11 . . 17 . 5 . . 13 6 . . Successful 141 | . 8 . 31 2 7 13 1 . 1 5 . 1 . . 29 . 6 . . 17 . 3 . . 13 4 . . Failed 47 | . 10 2 . . 9 11 6 . . . . . . . . . 5 . . . . 2 . . . 2 . . Catastrophic 4 | . . 1 . . 1 1 1 . . . . . . . . . . . . . . . . . . . . . Database Lockouts 2 | . . . . 1 . 1 . . . . . . . . . . . . . . . . . . . . . . Manual 131 | . 10 2 2 3 10 15 2 . . . . 21 . . . . 16 . . . . 6 . . 1 . 28 15 Terminals 68 | . 16 2 . 3 16 25 5 . . . . . . . . . . . . . . . . . . 1 . . Fabricators 6 | . . . . . . . . . . . . . . . . . 2 . . . . . . . . 4 . . Repair Stations 7 | . . . . . . . . . . . . . . . . . 7 . . . . . . . . . . . Recycling Units 5 | . 2 . . . . . . . . . . . . . . . . . . . . 2 . . . 1 . . Scanalyzers 3 | . . . . . . . . . . . . . . . . . . . . . . 3 . . . . . . Garrison Access 5 | . . . . . . . 2 . . . . 1 . . . . 2 . . . . . . . . . . . Terminal Hacks 119 | . 5 . 31 2 5 9 1 . 1 5 . . . . 29 . . . . 17 . . . . 13 1 . . Record 55 | . . . 30 . . . . . . . . . . . 11 . . . . 6 . . . . 8 . . . Part Schematic 19 | . . . . . . 1 . . . 5 . . . . 10 . . . . 3 . . . . . . . . Robot Schematic 5 | . . . . . . . . . . . . . . . 5 . . . . . . . . . . . . . Robot Analysis 12 | . 4 . . 2 1 . 1 . . . . . . . . . . . . 4 . . . . . . . . Prototype ID Bank 16 | . 1 . . . . 4 . . . . . . . . 3 . . . . 4 . . . . 4 . . . Open Door 5 | . . . . . . 2 . . 1 . . . . . . . . . . . . . . . 1 1 . . Level Access Points 1 | . . . . . 1 . . . . . . . . . . . . . . . . . . . . . . . Terminal Index 1 | . . . . . . 1 . . . . . . . . . . . . . . . . . . . . . . Hauler Manifests 2 | . . . . . 1 1 . . . . . . . . . . . . . . . . . . . . . . Registered Components 1 | . . . . . 1 . . . . . . . . . . . . . . . . . . . . . . . Zone Layout 1 | . . . . . 1 . . . . . . . . . . . . . . . . . . . . . . . Proto ID Catalog 1 | . . . 1 . . . . . . . . . . . . . . . . . . . . . . . . . Fabricator Hacks 2 | . . . . . . . . . . . . . . . . . . . . . . . . . . 2 . . Load Schematic 1 | . . . . . . . . . . . . . . . . . . . . . . . . . . 1 . . Build 1 | . . . . . . . . . . . . . . . . . . . . . . . . . . 1 . . Repair Station Hacks 5 | . . . . . . . . . . . . . . . . . 5 . . . . . . . . . . . Scan Component 3 | . . . . . . . . . . . . . . . . . 3 . . . . . . . . . . . Repair 2 | . . . . . . . . . . . . . . . . . 2 . . . . . . . . . . . Recycling Unit Hacks 1 | . . . . . . . . . . . . . . . . . . . . . . . . . . 1 . . Retrieve Components 1 | . . . . . . . . . . . . . . . . . . . . . . . . . . 1 . . Scanalyzer 3 | . . . . . . . . . . . . . . . . . . . . . . 3 . . . . . . Insert Component 1 | . . . . . . . . . . . . . . . . . . . . . . 1 . . . . . . Analyze 2 | . . . . . . . . . . . . . . . . . . . . . . 2 . . . . . . Garrison Access Hacks . | . . . . . . . . . . . . . . . . . . . . . . . . . . . . . Unauthorized Hacks 11 | . 3 . . . 2 4 . . . . . 1 . . . . 1 . . . . . . . . . . . Terminals 7 | . 1 . . . 2 4 . . . . . . . . . . . . . . . . . . . . . . Track 1 | . . . . . . 1 . . . . . . . . . . . . . . . . . . . . . . Assimilate 1 | . . . . . 1 . . . . . . . . . . . . . . . . . . . . . . . Botnet 4 | . 1 . . . 1 2 . . . . . . . . . . . . . . . . . . . . . . Operators 1 | . . . . . . 1 . . . . . . . . . . . . . . . . . . . . . . Fabricators . | . . . . . . . . . . . . . . . . . . . . . . . . . . . . . Repair Stations . | . . . . . . . . . . . . . . . . . . . . . . . . . . . . . Recycling Units 2 | . 2 . . . . . . . . . . . . . . . . . . . . . . . . . . . Tunnel 2 | . 2 . . . . . . . . . . . . . . . . . . . . . . . . . . . Scanalyzers . | . . . . . . . . . . . . . . . . . . . . . . . . . . . . . Garrison Access 2 | . . . . . . . . . . . . 1 . . . . 1 . . . . . . . . . . . Reprogram 1 | . . . . . . . . . . . . . . . . . 1 . . . . . . . . . . . Watchers 1 | . . . . . . . . . . . . 1 . . . . . . . . . . . . . . . . Data Cores Recovered 2 | . . . . . . . . . . . . . . . . . . . . . . . . . . . 1 1 Used . | . . . . . . . . . . . . . . . . . . . . . . . . . . . . . Hacking Detections 27 | . 5 1 . . 5 6 3 . . . . . . . . . 3 . . . . 2 . . . 2 . . Full Trace Events 4 | . . . . . 1 1 . . . . . . . . . . 1 . . . . . . . . 1 . . Feedback Events . | . . . . . . . . . . . . . . . . . . . . . . . . . . . . . Feedback Blocked . | . . . . . . . . . . . . . . . . . . . . . . . . . . . . . Robot Schematics Acquired 10 | . . . . . . . . . . 4 . . . . 5 . . . . . . . . . . . . 1 Robots Built . | . . . . . . . . . . . . . . . . . . . . . . . . . . . . . Authchips . | . . . . . . . . . . . . . . . . . . . . . . . . . . . . . Time . | . . . . . . . . . . . . . . . . . . . . . . . . . . . . . Total Robot Build Rating . | . . . . . . . . . . . . . . . . . . . . . . . . . . . . . Part Schematics Acquired 61 | . . . . . . 1 . . . 19 . 12 . . 10 . . . . 3 . 1 . . . . . 15 Parts Built 1 | . . . . . . . . . . . . . . . . . . . . . . . . . . 1 . . Authchips . | . . . . . . . . . . . . . . . . . . . . . . . . . . . . . Time 84 | . . . . . . . . . . . . . . . . . . . . . . . . . . 84 . . Total Part Build Rating 6 | . . . . . . . . . . . . . . . . . . . . . . . . . . 6 . . Parts Repaired 2 | . . . . . . . . . . . . . . . . . 2 . . . . . . . . . . . Time 52 | . . . . . . . . . . . . . . . . . 52 . . . . . . . . . . . Parts Recycled . | . . . . . . . . . . . . . . . . . . . . . . . . . . . . . Recycled Matter . | . . . . . . . . . . . . . . . . . . . . . . . . . . . . . Retrieved Matter . | . . . . . . . . . . . . . . . . . . . . . . . . . . . . . Retrieved Components 7 | . . . . . . . . . . . . . . . . . . . . . . . . . . 7 . . Parts Scanalyzed 1 | . . . . . . . . . . . . . . . . . . . . . . 1 . . . . . . Part Schematics Acquired 1 | . . . . . . . . . . . . . . . . . . . . . . 1 . . . . . . Parts Damaged . | . . . . . . . . . . . . . . . . . . . . . . . . . . . . . Bothacking | -11 -10 -10 -10 -9 -8 -8 -7 -7 -7 -7 -6 -6 -6 -6 -6 -5 -5 -5 -5 -5 -4 -4 -4 -4 -4 -3 -3 -3 ------------ Run | Yrd Mat Min Exi Min Mat Sto Fac Low Low Zio Pro Fac Low Low Dat Pro Fac Upp Upp Zhi Pro Fac Upp Upp War Pro Res Tes Used RIF Installer . | . . . . . . . . . . . . . . . . . . . . . . . . . . . . . Robots Hacked 5 | . . . . . . . . . . . . 1 . . . . . 4 . . . . . . . . . . Non-combat . | . . . . . . . . . . . . . . . . . . . . . . . . . . . . . Combat 5 | . . . . . . . . . . . . 1 . . . . . 4 . . . . . . . . . . Robot Hacks Applied 5 | . . . . . . . . . . . . 1 . . . . . 4 . . . . . . . . . . parse_system 5 | . . . . . . . . . . . . 1 . . . . . 4 . . . . . . . . . . Relay Couplers Released 3 | . . . . . . 3 . . . . . . . . . . . . . . . . . . . . . . Machine Destruction 3 | . . . . . . 3 . . . . . . . . . . . . . . . . . . . . . . Fabnet Peak Effective % . | . . . . . . . . . . . . . . . . . . . . . . . . . . . . . Robots Rewired 17 | . . . . . . . . . . . . . . . . . . 1 . . . . . . 5 11 . . Allies Hacked 3 | . . . . . . . . . . . . . . . . . . . . . . 1 . . . . 2 . Hacks Repelled . | . . . . . . . . . . . . . . . . . . . . . . . . . . . . . Allies | -11 -10 -10 -10 -9 -8 -8 -7 -7 -7 -7 -6 -6 -6 -6 -6 -5 -5 -5 -5 -5 -4 -4 -4 -4 -4 -3 -3 -3 -------- Run | Yrd Mat Min Exi Min Mat Sto Fac Low Low Zio Pro Fac Low Low Dat Pro Fac Upp Upp Zhi Pro Fac Upp Upp War Pro Res Tes Total Allies 58 | . . 1 . . 1 12 . . . 7 . 4 . . . . 10 1 . . . 1 . . 5 11 5 . Largest Group 10 | . . 1 . . 1 10 . . . 7 7 7 . . . . 9 9 8 4 4 1 . . 5 8 7 . Highest-Rated Group 460 | . . 31 . . 10 173 . . . 232 232 232 . . . . 460 460 390 186 186 28 . . 274 366 411 . Highest-Rated Ally 127 | . . 31 . . 10 31 . . . 40 40 70 . . . . 70 70 70 70 70 28 . . 64 89 127 . Zionite Dispatches 8 | . . . . . . . . . . . . 2 . . . . 2 . . . . 1 . . . . 3 . Light 4 | . . . . . . . . . . . . 1 . . . . 2 . . . . . . . . . 1 . Hero 1 | . . . . . . . . . . . . . . . . . . . . . . . . . . . 1 . Offense Resupply 1 | . . . . . . . . . . . . 1 . . . . . . . . . . . . . . . . Infowar Resupply 2 | . . . . . . . . . . . . . . . . . . . . . . 1 . . . . 1 . Total Orders 17 | . . . . . . . . . . . . . . . . . . . . . . 2 . . 6 6 3 . STAY 9 | . . . . . . . . . . . . . . . . . . . . . . 1 . . 5 3 . . FOLLOW 5 | . . . . . . . . . . . . . . . . . . . . . . . . . . 3 2 . AID 1 | . . . . . . . . . . . . . . . . . . . . . . . . . 1 . . . DROP 2 | . . . . . . . . . . . . . . . . . . . . . . 1 . . . . 1 . Ally Attacks 511 | . . 12 . . . 98 . . . . 17 57 . . . . 60 43 53 . 19 . . . 38 27 87 . Total Damage 12109 | . . 146 . . . 1198 . . . . 490 1203 . . . . 1115 876 776 . 193 . . . 1224 773 4115 . Kills 77 | . . 4 . . . 12 . . . . 4 7 . . . . 8 4 5 . 6 . . . 4 3 20 . Allies Corrupted 4 | . . . . . . . . . . . . 2 . . . . . . . . . 1 . . . . 1 . Allies Melted 1 | . . . . . . . . . . . . . . . . . . . . . . . . . 1 . . . Intel | -11 -10 -10 -10 -9 -8 -8 -7 -7 -7 -7 -6 -6 -6 -6 -6 -5 -5 -5 -5 -5 -4 -4 -4 -4 -4 -3 -3 -3 ------- Run | Yrd Mat Min Exi Min Mat Sto Fac Low Low Zio Pro Fac Low Low Dat Pro Fac Upp Upp Zhi Pro Fac Upp Upp War Pro Res Tes Active Infowar (turns) 17386 | 41 1329 300 . . 1 1160 353 207 270 1198 463 1442 493 759 94 354 1174 552 445 205 31 917 594 544 1397 1796 988 279 Optics 3878 | . . . . . . . . . . . . . . . . . . . . . . . . . 1214 1796 868 . Sensors 9447 | . . . . . . 1083 353 207 270 1198 463 1442 493 759 94 354 1174 552 445 205 31 . . . . 46 . 278 Seismic 6439 | 41 1047 261 . . 1 77 . . . . . . . . . . . . . . . 887 594 544 882 1137 968 . Cloaking 1377 | . . . . . . . . . . . . . . . . . . . . . . 848 111 . . 172 . 246 Jamming 3997 | . . . . . . . . . . . . . . . . . . . . . . 812 574 371 . 1361 879 . ECM 321 | . 282 39 . . . . . . . . . . . . . . . . . . . . . . . . . . Robot Analysis Total 12 | . 4 . . 2 1 . 1 . . . . . . . . . . . . 4 . . . . . . . . Derelict Logs Recovered 18 | . . 1 . 1 . . . 1 . 2 2 . 1 1 . 2 . 1 2 . 1 . 1 2 . . . . Drone Launches . | . . . . . . . . . . . . . . . . . . . . . . . . . . . . . Drone Recoveries . | . . . . . . . . . . . . . . . . . . . . . . . . . . . . . Zionite Intel Received 14 | . . . . . . . . . . . . 3 . . . . 2 . . . . . . . . . 5 4 Emergency Access 2 | . . . . . . . . . . . . 1 . . . . . . . . . . . . . . 1 . Component Stockpiles 1 | . . . . . . . . . . . . . . . . . . . . . . . . . . . . 1 Prototype Stockpiles 2 | . . . . . . . . . . . . . . . . . . . . . . . . . . . 1 1 Component Schematics 1 | . . . . . . . . . . . . . . . . . . . . . . . . . . . . 1 Prototype Schematics 1 | . . . . . . . . . . . . 1 . . . . . . . . . . . . . . . . Unaware Analyses 2 | . . . . . . . . . . . . . . . . . 1 . . . . . . . . . 1 . Active Garrisons 2 | . . . . . . . . . . . . . . . . . . . . . . . . . . . 1 1 Depthwide Sectors/0 1 | . . . . . . . . . . . . . . . . . . . . . . . . . . . 1 . Depthwide Sectors/-1 2 | . . . . . . . . . . . . 1 . . . . 1 . . . . . . . . . . . Exploration | -11 -10 -10 -10 -9 -8 -8 -7 -7 -7 -7 -6 -6 -6 -6 -6 -5 -5 -5 -5 -5 -4 -4 -4 -4 -4 -3 -3 -3 ------------- Run | Yrd Mat Min Exi Min Mat Sto Fac Low Low Zio Pro Fac Low Low Dat Pro Fac Upp Upp Zhi Pro Fac Upp Upp War Pro Res Tes Turns Passed 20637 | 137 1556 1019 435 160 423 1508 364 225 291 1198 463 1442 493 759 94 354 1174 563 445 205 555 917 594 651 1397 1796 1060 359 Spaces Moved 12991 | 67 761 659 373 91 252 957 255 199 254 1117 306 928 316 479 85 279 751 382 291 141 349 666 413 412 796 773 419 220 Core 12 | 5 . 7 . . . . . . . . . . . . . . . . . . . . . . . . . . Treads 1857 | 62 492 . . . . . . . . . . . . . . . . . . . . . . . 176 773 354 . Legs . | . . . . . . . . . . . . . . . . . . . . . . . . . . . . . Wheels 11122 | . 269 652 373 91 252 957 255 199 254 1117 306 928 316 479 85 279 751 382 291 141 349 666 413 412 620 . 65 220 Hover . | . . . . . . . . . . . . . . . . . . . . . . . . . . . . . Flight . | . . . . . . . . . . . . . . . . . . . . . . . . . . . . . Fastest Speed 50 | 50 110 105 110 125 95 95 95 100 100 100 100 100 115 101 101 101 115 115 115 115 115 115 115 115 115 160 112 110 Average Speed 119 | 151 144 118 115 125 110 104 96 100 100 100 100 111 123 115 101 112 122 129 119 129 116 115 117 118 128 160 160 111 Slowest Speed 850 | 160 320 850 125 125 125 125 110 100 100 100 100 135 125 116 116 116 130 130 130 130 145 115 130 130 160 160 260 130 Overloaded Moves . | . . . . . . . . . . . . . . . . . . . . . . . . . . . . . Propulsion Burnouts . | . . . . . . . . . . . . . . . . . . . . . . . . . . . . . Robots Hopped . | . . . . . . . . . . . . . . . . . . . . . . . . . . . . . Potential Cave-ins 2 | . . . . . . . . . . . . . . . . . 2 . . . . . . . . . . . Cave-ins Triggered . | . . . . . . . . . . . . . . . . . . . . . . . . . . . . . Exploration Rate (%) 49 | 4 84 94 69 20 20 94 5 45 47 89 49 30 47 51 70 43 23 59 46 60 55 19 65 56 88 55 13 30 Regions Visited 28 Branch Regions 21 Pre-discovered Areas 26 | . 2 1 1 . . . . . . 2 1 4 . 1 1 . 6 . . 3 . . . 1 . . 3 . Known Exits Taken 15 | . . . . . . 1 1 1 1 1 1 1 1 1 1 1 1 1 . . 1 1 . . . . . . Unknown Exits Taken 13 | 1 1 1 1 1 1 . . . . . . . . . . . . . 1 1 . . 1 1 1 1 1 . Scrap Searched 22 | . . 1 . . . . . . 1 2 1 . 2 2 . 1 . 1 2 . 4 . 2 1 . 2 . . Spaces Dug 187 | . 6 1 . 17 5 52 . . . . . 8 16 25 . . 13 2 3 . . 14 2 7 10 . 4 2 Terrain Destroyed 917 | . 10 10 . 94 14 107 . . . . 38 59 44 77 . 105 27 21 44 . 13 19 36 11 38 35 93 22 Melee 5 | . . . . . . . . . . . . 5 . . . . . . . . . . . . . . . . Projectile 355 | . 7 10 . 3 8 38 . . . . . 11 44 77 . 1 27 8 18 . 13 19 13 11 5 . 35 7 AOE 551 | . 3 . . 91 6 69 . . . . 38 43 . . . 104 . 13 26 . . . 23 . 33 35 52 15 Terrain Rammed . | . . . . . . . . . . . . . . . . . . . . . . . . . . . . . Walls Destroyed . | . . . . . . . . . . . . . . . . . . . . . . . . . . . . . Machines Disabled . | . . . . . . . . . . . . . . . . . . . . . . . . . . . . . Actions | -11 -10 -10 -10 -9 -8 -8 -7 -7 -7 -7 -6 -6 -6 -6 -6 -5 -5 -5 -5 -5 -4 -4 -4 -4 -4 -3 -3 -3 --------- Run | Yrd Mat Min Exi Min Mat Sto Fac Low Low Zio Pro Fac Low Low Dat Pro Fac Upp Upp Zhi Pro Fac Upp Upp War Pro Res Tes Total 16197 | 87 1015 759 381 113 357 1258 358 209 273 1197 451 1197 360 581 95 304 940 430 358 162 440 756 467 494 1095 1152 622 286 Wait 1316 | . 108 4 . 10 53 120 76 3 9 63 124 122 14 37 . 4 100 15 15 9 51 16 1 22 117 153 61 9 Move 12964 | 66 760 658 372 90 251 956 254 198 253 1116 305 927 315 478 84 278 750 381 290 140 348 665 412 411 796 772 418 220 Hop . | . . . . . . . . . . . . . . . . . . . . . . . . . . . . . Pick Up 159 | 6 11 6 2 . 5 20 5 . 1 3 3 18 . 1 3 . 13 3 11 3 5 11 4 . 10 5 8 2 Fast Attach 111 | 8 3 3 1 1 1 9 4 . . 5 . 11 1 3 . . 8 1 3 5 1 4 3 3 12 . 14 7 Attach 100 | . 1 3 . 1 11 7 1 . . . 3 10 . 2 4 4 3 3 6 . 3 3 6 5 4 3 11 6 Detach 38 | . . . 2 1 7 . . . . 1 . 3 . 2 1 4 2 . . . . . 4 2 2 . 2 5 Swap 198 | . 25 15 . . 6 22 4 2 2 . 1 15 . 7 . . 10 2 2 1 5 19 5 . 12 23 16 4 Drop 203 | 1 13 5 4 1 4 28 7 . 1 8 4 27 1 4 3 . 15 4 14 4 5 11 1 . 14 9 12 3 Fire 891 | 6 94 65 . 9 19 95 7 6 7 1 11 58 29 47 . 14 39 13 17 . 22 27 31 51 37 90 79 17 Melee 23 | . . . . . . . . . . . . 6 . . . . . 4 . . . . . . . . . 13 Ram 1 | . . . . . . 1 . . . . . . . . . . . . . . . . . . . . . . Kick . | . . . . . . . . . . . . . . . . . . . . . . . . . . . . . Crush 1 | . . . . . . . . . . . . . . . . . . . . . . . . . 1 . . . Escape Stasis 1 | . . . . . . . . . . . . . . . . . . . . . . . . . . . 1 . Rewire 191 | . . . . . . . . . . . . . . . . . . 4 . . . . . . 90 97 . . Trap . | . . . . . . . . . . . . . . . . . . . . . . . . . . . . . Miscellaneous . | . . . . . . . . . . . . . . . . . . . . . . . . . . . . . Route ------- -11/Scrapyard -10/Materials (discovered 4 exits: [*Mat] / *Min x2 / [*Sub]) -10/Mines (discovered 3 exits: [*Mat] / *Exi / [*Sub]) -10/Exiles -9/Mines -8/Materials (discovered 4 exits: Fac x3 / *Sto) -8/Storage -7/Factory -7/Lower Caves -7/Lower Caves -7/Zion -6/Proximity Caves -6/Factory (discovered 4 exits: *Fac x3 / *Low) -6/Lower Caves -6/Lower Caves -6/Data Miner -5/Proximity Caves -5/Factory (discovered 2 exits: Fac / *Upp) -5/Upper Caves -5/Upper Caves -5/Zhirov -4/Proximity Caves -4/Factory (discovered 2 exits: *Res / *Upp) -4/Upper Caves -4/Upper Caves -4/Warlord -3/Proximity Caves -3/Research -3/Testing History --------- Turn | Location | Event 23 | -11/Scrapyard | Discovered new exit (range 15) 138 | -11/Scrapyard | Entered Materials 310 | -10/Materials | Build established: Mutant 453 | -10/Materials | Discovered new exit (range 16) 622 | -10/Materials | Discovered new exit (range 7) 1240 | -10/Materials | Discovered new exit (range 16) 1644 | -10/Materials | Discovered new exit (range 8) 1694 | -10/Materials | Entered Mines 1796 | -10/Mines | Learned location of Mines (-9) 1828 | -10/Mines | Met a Derelict testing a Signal Generator 1905 | -10/Mines | Lost 3 parts (2n1w) 2057 | -10/Mines | Core integrity fell below 50% 2156 | -10/Mines | Discovered new exit (range 10) 2353 | -10/Mines | Build established: Scavenger-Mutant 2358 | -10/Mines | A weapon hastily lodged in a ceiling crevice suddenly fell to the ground 2573 | -10/Mines | Discovered new exit (range 5) 2708 | -10/Mines | Deemed a non-threat by the Exiles lab entrance 2708 | -10/Mines | Discovered new exit (range 5) 2713 | -10/Mines | Entered Exiles 2743 | -10/Exiles | Met 8R-AWN 2760 | -10/Exiles | Met EX-HEX 2803 | -10/Exiles | Met EX-DEC 2807 | -10/Exiles | Learned location of Zion (-7) 2851 | -10/Exiles | Met EX-BIN 2951 | -10/Exiles | Aligned with FarCom system 2952 | -10/Exiles | Given EX-Vault access code 2977 | -10/Exiles | Opened EX-Vault 2988 | -10/Exiles | Found YOLO Cannon 2990 | -10/Exiles | Found AWS/Autocannon 2997 | -10/Exiles | Found Superbattery 3022 | -10/Exiles | Warned to stay clear of 0b10 Research branches 3130 | -10/Exiles | Discovered new exit (range 14) 3148 | -10/Exiles | Stole three prototypes: YOLO Cannon, Superbattery, AWS/Autocannon 3148 | -10/Exiles | Entered Mines 3170 | -9/Mines | Learned Materials machine intel 3265 | -9/Mines | Discovered new exit (range 14) 3298 | -9/Mines | Central database locked down 3308 | -9/Mines | Entered Materials 3308 | -8/Materials | Evolved 4 slots: Propulsion x1, Utility x2, Weapon x1 3309 | -8/Materials | Loaded intel: 51 machine locations 3633 | -8/Materials | Build established: Scavenger-Skirmisher 3707 | -8/Materials | Identified exit to Factory 3717 | -8/Materials | Discovered new exit (range 9) 3727 | -8/Materials | Garrison activated, responded to threat 3731 | -8/Materials | Entered Storage 3733 | -8/Storage | FarCom data flow suspended 4067 | -8/Storage | Discovered exit to Factory (range 8) 4323 | -8/Storage | Assisted by bots powering up and referring to "LRC-V3" 4358 | -8/Storage | Central database locked down 4949 | -8/Storage | Build established: Commander-Skirmisher 5082 | -8/Storage | Met a pair of Derelict thieves 5137 | -8/Storage | Lost 3 allies 5238 | -8/Storage | Lost 3 allies 5239 | -8/Storage | Entered Factory 5239 | -7/Factory | Evolved 2 slots: Propulsion x1, Weapon x1 5294 | -7/Factory | Build established: Scavenger-Skirmisher 5523 | -7/Factory | Discovered new exit (range 8) 5530 | -7/Factory | Identified exit to Lower Caves 5603 | -7/Factory | Entered Lower Caves 5604 | -7/Lower Caves | Encountered a Warlord checkpoint 5722 | -7/Lower Caves | Learned Factory security intel 5795 | -7/Lower Caves | Discovered new exit (range 8) 5805 | -7/Lower Caves | Attracted the attention of an 0b10 checkpoint 5826 | -7/Lower Caves | Identified exit to Lower Caves 5828 | -7/Lower Caves | Entered another Lower Caves area 6114 | -7/Lower Caves | Discovered new exit (range 5) 6117 | -7/Lower Caves | Identified exit to Zion 6119 | -7/Lower Caves | Entered Zion 6202 | -7/Zion | Found Prototype Special Weapon 6202 | -7/Zion | Identified RU-N14's Throwing Claymores 6209 | -7/Zion | Found RU-N14's Throwing Claymores 6246 | -7/Zion | Found Prototype Launcher 6246 | -7/Zion | Identified Gui. Missile Launcher 6591 | -7/Zion | Learned location of Data Miner (-6) 6675 | -7/Zion | Gained Derelict followers 6784 | -7/Zion | Given A8's code to call for help 6796 | -7/Zion | Learned 4 Factory zone layouts 6977 | -7/Zion | Met Imprinter 6997 | -7/Zion | Imprinted 6999 | -7/Zion | Declared Zion's savior 7253 | -7/Zion | Discovered new exit (range 13) 7265 | -7/Zion | Identified exit to Proximity Caves 7317 | -7/Zion | Entered Proximity Caves 7317 | -6/Proximity Caves | Accompanied by 7 allies 7463 | -6/Proximity Caves | Attracted the attention of an 0b10 checkpoint 7628 | -6/Proximity Caves | Learned Factory terminal intel 7740 | -6/Proximity Caves | Discovered new exit (range 16) 7754 | -6/Proximity Caves | Identified exit to Factory 7780 | -6/Proximity Caves | Entered Factory 7780 | -6/Factory | Accompanied by 7 allies 7780 | -6/Factory | Evolved 2 slots: Utility x2 7783 | -6/Factory | Loaded intel: 27 terminal locations 7951 | -6/Factory | Retrieved Zion intel report: Depthwide Sectors/-5 8094 | -6/Factory | Build established: Scavenger-Tank 8270 | -6/Factory | Garrison activated, responded to threat 8313 | -6/Factory | Lost 4 allies 8467 | -6/Factory | Discovered new exit (range 8) 8473 | -6/Factory | Identified exit to Factory 8528 | -6/Factory | Garrison activated, responded to threat 8608 | -6/Factory | Discovered exit to Factory (range 9) 8626 | -6/Factory | Build established: Skirmisher 8687 | -6/Factory | Retrieved Zion intel report: Prototype Schematics 8688 | -6/Factory | Zion Light squad teleported in 8819 | -6/Factory | Discovered exit to Factory (range 15) 8945 | -6/Factory | Found Zio. Weapon Casing 8967 | -6/Factory | Lost 3 allies 9002 | -6/Factory | Build established: Pyromaniac-Skirmisher 9068 | -6/Factory | Discovered new exit (range 16) 9076 | -6/Factory | Retrieved Zion intel report: Emergency Access 9077 | -6/Factory | Zion Offense Resupply teleported in 9119 | -6/Factory | P-60 Hacker assimilated allied EY-5GR(A) 9135 | -6/Factory | System corruption reached 10% 9176 | -6/Factory | Terminal network hard line cut 9180 | -6/Factory | First assault squad dispatched 9221 | -6/Factory | Identified exit to Lower Caves 9222 | -6/Factory | Entered Lower Caves 9653 | -6/Lower Caves | Discovered new exit (range 6) 9655 | -6/Lower Caves | Learned 12 Factory zone layouts 9658 | -6/Lower Caves | Identified exit to Lower Caves 9715 | -6/Lower Caves | Entered another Lower Caves area 10341 | -6/Lower Caves | Spotted OA-W3D(f) 10342 | -6/Lower Caves | Spotted J7-0O1(f) 10343 | -6/Lower Caves | Encountered a Master Thief 10343 | -6/Lower Caves | Encountered a Master Thief 10347 | -6/Lower Caves | Destroyed OA-W3D(f) 10348 | -6/Lower Caves | Spotted E5-4B5(f) 10348 | -6/Lower Caves | Spotted 2Q-7IJ(f) 10349 | -6/Lower Caves | Encountered a Master Thief 10349 | -6/Lower Caves | Encountered a Master Thief 10349 | -6/Lower Caves | Spotted 5X-AJ5(f) 10350 | -6/Lower Caves | Encountered a Master Thief 10350 | -6/Lower Caves | Superbattery stolen by Master Thief 10351 | -6/Lower Caves | AWS/Autocannon stolen by Master Thief 10353 | -6/Lower Caves | YOLO Cannon stolen by Master Thief 10354 | -6/Lower Caves | Zio. Light DM Reactor stolen by Master Thief 10465 | -6/Lower Caves | Discovered new exit (range 8) 10472 | -6/Lower Caves | Identified exit to Data Miner 10474 | -6/Lower Caves | Entered Data Miner 10478 | -6/Data Miner | Discovered new exit (range 8) 10501 | -6/Data Miner | Met Data Miner 10532 | -6/Data Miner | Learned location of Section 7 (-2) 10532 | -6/Data Miner | Acquired the access code to Warlord's prototype stash 10540 | -6/Data Miner | Received God Mode back door access code from Data Miner 10562 | -6/Data Miner | Identified exit to Proximity Caves 10568 | -6/Data Miner | Entered Proximity Caves 10571 | -5/Proximity Caves | Learned Factory emergency access door positions 10694 | -5/Proximity Caves | Spotter reported a threat 10707 | -5/Proximity Caves | Learned location of 1 exit from Factory 10911 | -5/Proximity Caves | Discovered exit to Factory (range 9) 10922 | -5/Proximity Caves | Entered Factory 10922 | -5/Factory | Evolved 2 slots: Power x1, Utility x1 10923 | -5/Factory | Identified exit to Factory 11068 | -5/Factory | Incoming investigation squad redirected 11379 | -5/Factory | Retrieved Zion intel report: Unaware Analyses 11415 | -5/Factory | Repaired Hrd. Heavy Armor Plating? 11479 | -5/Factory | Retrieved Zion intel report: Depthwide Sectors/-4 11480 | -5/Factory | Zion Light squad teleported in 11512 | -5/Factory | Build established: Skirmisher 11531 | -5/Factory | Incoming investigation squad redirected 11648 | -5/Factory | Garrison activated, responded to threat 11822 | -5/Factory | Repaired Broken Coolant Injector 11879 | -5/Factory | Discovered new exit (range 11) 11919 | -5/Factory | Identified exit to Upper Caves 12031 | -5/Factory | Cargo convoy interrupted 12073 | -5/Factory | Zion Light squad teleported in 12096 | -5/Factory | Entered Upper Caves 12096 | -5/Upper Caves | Accompanied by 9 allies 12220 | -5/Upper Caves | Learned Factory security intel 12457 | -5/Upper Caves | Attracted the attention of an 0b10 outpost 12628 | -5/Upper Caves | Discovered new exit (range 15) 12648 | -5/Upper Caves | Identified exit to Upper Caves 12659 | -5/Upper Caves | Entered another Upper Caves area 12659 | -5/Upper Caves | Accompanied by 8 allies 12666 | -5/Upper Caves | Encountered a Warlord checkpoint 12676 | -5/Upper Caves | Learned Factory security intel 12823 | -5/Upper Caves | Attracted the attention of an 0b10 checkpoint 12887 | -5/Upper Caves | Found Zio. Weapon Casing 12955 | -5/Upper Caves | Spotted 6H-0Y8(f) 12955 | -5/Upper Caves | Spotted 65-1J5(f) 12956 | -5/Upper Caves | Encountered a Master Thief 12956 | -5/Upper Caves | Encountered a Master Thief 12960 | -5/Upper Caves | Zio. Light DM Reactor stolen by Master Thief 12965 | -5/Upper Caves | Zio. Light DM Reactor stolen by Master Thief 12965 | -5/Upper Caves | Spotted L2-B1U(f) 12966 | -5/Upper Caves | Encountered a Master Thief 12969 | -5/Upper Caves | Destroyed 65-1J5(f) 12970 | -5/Upper Caves | Exp. Heat Sink stolen by Master Thief 13074 | -5/Upper Caves | Discovered new exit (range 6) 13104 | -5/Upper Caves | Entered Zhirov 13104 | -5/Zhirov | Accompanied by 4 allies 13104 | -5/Zhirov | Discovered new exit (range 3) 13128 | -5/Zhirov | Met Zhirov 13156 | -5/Zhirov | Learned location of Quarantine (-2) 13156 | -5/Zhirov | Learned location of Testing (-3) 13156 | -5/Zhirov | Learned location of Command (-1) 13164 | -5/Zhirov | Zhirov requested help retrieving the SGEMP Prototype 13186 | -5/Zhirov | Found Alien Artifact 13202 | -5/Zhirov | Found Alien Artifact 13202 | -5/Zhirov | Identified Integrated Dissipator 13202 | -5/Zhirov | Installed Integrated Dissipator, increased core heat dissipation (+20) 13279 | -5/Zhirov | Build established: Messiah-Tank 13309 | -5/Zhirov | Entered Proximity Caves 13309 | -4/Proximity Caves | Accompanied by 4 allies 13330 | -4/Proximity Caves | Found Zio. Weapon Casing 13342 | -4/Proximity Caves | Found Zio. Weapon Casing 13570 | -4/Proximity Caves | Learned Research terminal intel 13596 | -4/Proximity Caves | Spotted B-86 Titan 13802 | -4/Proximity Caves | Destroyed B-86 Titan 13829 | -4/Proximity Caves | Lost 4 parts (1p3u) 13846 | -4/Proximity Caves | Discovered exit to Factory (range 14) 13864 | -4/Proximity Caves | Entered Factory 13864 | -4/Factory | Evolved 2 slots: Utility x2 13865 | -4/Factory | Identified exit to Upper Caves 13882 | -4/Factory | Zion Infowar Resupply teleported in 14221 | -4/Factory | Spotted B-86 Titan 14498 | -4/Factory | Discovered new exit (range 4) 14781 | -4/Factory | Entered Upper Caves 14781 | -4/Upper Caves | Spotted DB-71L(f) 14781 | -4/Upper Caves | Spotted WC-58N(f) 14782 | -4/Upper Caves | Zio. Laser-S stolen by Master Thief 14783 | -4/Upper Caves | Encountered a Master Thief 14783 | -4/Upper Caves | Encountered a Master Thief 14784 | -4/Upper Caves | Alien Artifact stolen by Master Thief 14943 | -4/Upper Caves | Attracted the attention of an 0b10 checkpoint 15221 | -4/Upper Caves | Learned Research stockpile data 15371 | -4/Upper Caves | Discovered new exit (range 5) 15375 | -4/Upper Caves | Entered another Upper Caves area 15376 | -4/Upper Caves | Build established: Derelict-Tank 15412 | -4/Upper Caves | Attracted the attention of an 0b10 checkpoint 15665 | -4/Upper Caves | Learned Research security intel 15670 | -4/Upper Caves | Lost 5 parts (1p2n1u1w) 15932 | -4/Upper Caves | Build established: Mutant 15959 | -4/Upper Caves | Attracted the attention of an 0b10 outpost 16017 | -4/Upper Caves | Discovered new exit (range 10) 16026 | -4/Upper Caves | Entered Warlord 16066 | -4/Warlord | System corruption cleaned by Quarantine Array 16183 | -4/Warlord | Opened Warlord's prototype stash 16201 | -4/Warlord | Found Prototype Reactor 16201 | -4/Warlord | Identified Vortex Chain Reactor 16209 | -4/Warlord | Found Prototype Processor 16209 | -4/Warlord | Identified Spectral Analyzer 16217 | -4/Warlord | Found Prototype Processor 16217 | -4/Warlord | Identified Exp. Targeting Computer 16806 | -4/Warlord | Visited the Vortex Lab 16817 | -4/Warlord | Found Prototype Energy Gun 16817 | -4/Warlord | Identified Vortex Shotgun 16821 | -4/Warlord | Warlord's base attacked by MAIN.C 16823 | -4/Warlord | Found Vortex Shotgun 17171 | -4/Warlord | Warlord forces counterattacked 17183 | -4/Warlord | Spotted Striker 17209 | -4/Warlord | Build established: Commander-Tank 17212 | -4/Warlord | Destroyed Striker 17224 | -4/Warlord | Spotted Executioner 17237 | -4/Warlord | Destroyed Executioner 17271 | -4/Warlord | Lost 8 allies 17326 | -4/Warlord | Lost 7 allies 17334 | -4/Warlord | Spotted Executioner 17345 | -4/Warlord | Discovered new exit (range 15) 17358 | -4/Warlord | Destroyed Executioner 17384 | -4/Warlord | Destroyed 7 combat bots 17394 | -4/Warlord | Lost 5 allies 17421 | -4/Warlord | Spotted Executioner 17423 | -4/Warlord | Entered Proximity Caves 17618 | -3/Proximity Caves | Build established: Derelict-Tank 17860 | -3/Proximity Caves | Snuck into a huge 0b10 base via the rear entrance 18245 | -3/Proximity Caves | Discovered new exit (range 21) 18669 | -3/Proximity Caves | Fabricated Exp. Heat Sink? 18825 | -3/Proximity Caves | Spotted B-86 Titan 18838 | -3/Proximity Caves | Allies destroyed B-86 Titan 19219 | -3/Proximity Caves | Entered Research 19219 | -3/Research | Accompanied by 7 allies 19219 | -3/Research | Evolved 2 slots: Power x1, Utility x1 19222 | -3/Research | Loaded intel: 24 terminal locations 19276 | -3/Research | Retrieved Zion intel report: Depthwide Sectors/-3 19288 | -3/Research | Spotted B-86 Titan 19302 | -3/Research | Allies destroyed B-86 Titan 19310 | -3/Research | Retrieved Zion intel report: Active Garrisons 19332 | -3/Research | Lost 4 allies 19338 | -3/Research | Retrieved Zion intel report: Unaware Analyses 19339 | -3/Research | Zion hero teleported in (CL-ANK) 19482 | -3/Research | Discovered new exit (range 12) 19573 | -3/Research | Retrieved Zion intel report: Prototype Stockpiles 19624 | -3/Research | Spotted B-86 Titan 19648 | -3/Research | Allies destroyed B-86 Titan 19708 | -3/Research | Retrieved Zion intel report: Emergency Access 19709 | -3/Research | Zion Light squad teleported in 19855 | -3/Research | Zion Infowar Resupply teleported in 19867 | -3/Research | P-80 Master assimilated allied 2M-CUQ(z) 19925 | -3/Research | System corruption reached 10% 19969 | -3/Research | First assault squad dispatched 19998 | -3/Research | Cargo convoy interrupted 20099 | -3/Research | Incoming assault squad redirected 20129 | -3/Research | Lost 5 parts (1p4u) 20160 | -3/Research | Found Prototype Processor 20160 | -3/Research | Identified Exp. Melee Analysis Suite 20237 | -3/Research | Garrison activated, responded to threat 20279 | -3/Research | Entered Testing 20343 | -3/Testing | Retrieved Zion intel report: Prototype Stockpiles 20370 | -3/Testing | Retrieved Zion intel report: Active Garrisons 20425 | -3/Testing | Scanned by Researcher 20572 | -3/Testing | Retrieved Zion intel report: Component Stockpiles 20581 | -3/Testing | Retrieved Zion intel report: Component Schematics 20598 | -3/Testing | Spotted Striker 20598 | -3/Testing | Spotted Striker 20599 | -3/Testing | Spotted PL-GXJ1LE2LGA 20611 | -3/Testing | Spotted Alpha 7 20625 | -3/Testing | Destroyed Striker 20626 | -3/Testing | Core integrity fell below 50% 20634 | -3/Testing | Core integrity fell below 20% 20638 | -3/Testing | Destroyed by G-67 Veteran with Field Laser Last Messages --------------- 20629_ Slug penetrates Wall. 20629_ Slug penetrates Earth. 20629_ Com. Wheel destroyed. 20629_ U-05 Engineer builds a Wall. 20629_ U-05 Engineer lays Concrete. 20632_ Penetrated by Slug. 20632_ Slug penetrates Earth. 20632_ Hds. Centrium Wheel destroyed. 20632_ U-05 Engineer lays Concrete. 20635_ Penetrated by Slug. 20635_ Slug penetrates Earth. 20635_ Vortex Shotgun destroyed. 20635_ U-05 Engineer lays Concrete. 20636_ Earth collapses. 20636_ Centrium Wheel destroyed. 20636_ U-05 Engineer lays Concrete. 20637_ Mak. Sensor Array destroyed. 20638_ Penetrated by Slug. 20638_ Slug penetrates Earth. 20638_ U-05 Engineer lays Concrete. Map ----- +----------------------------------------------------+ | ????""" """ #^^ ^ ####+####?????????????? | | ?? """ """ # ^ #??? ????????????????? | | ? """ """ # ^ ^ !! #????= ???????????????? | | ? """ """ # / !! #????? ???????????????? | | # """ """ + #?????????????????????? | | # """ """ # #?????????????????????? | | # # #?????????????????????? | | # #### ##?????????????????????? | | # ! #??# #??????????????????????? | | # #??# #??????????????????????? | | # #??# #??????????????????????? | | #################+## #??????????????????????? | | ??# = # #??????????????????????? | | ??# # ########### ####???????? | | ????""" """ %#[ ???????? | | ????????""" """ =/% ^ ??????? | | ?????????"" """ %#= ""????????? | | ?????????"" """ =# "F????????? | | ??????????" """ ## ########+####????????????? | | ?????????? ## #????????????????????????? | | ????????? ## #?##?????????????????????? | | ????????############# ## #?????"???????????????? | | ????????????????#####+#;;##??"S""??????????????? | | ????????????????# # """" #????????????? | | ????????????????# u ; !#????????????? | | ?????????????#### " uK@ ;#???????????????????? | | ?????????????#""" " g #???????????????????? | | ?????????????#"T " = #???????????????????? | | ?????????????#""" "" ; #???????????????????? | | ?????????????#### """ 7g ;##???????????????????? | | ????????????????# g ##????????????????????? | | ????????????????# g #?????????????????????? | | ???????????## #####+########???????????????????? | | ?????"" / #????????????????? | | ?????" / / "????????????? | | ?????" ## #####+######### # ????????????? | | ???????????????????????????????????????????????? | | ???????????????????????????????????????????????? | | ???????????????????????????????????????????????? | | ???????????????????????????????????????????????? | | ???????????????????????????????????????????????? | | ???????????????????????????????????????????????? | | ???????????????????????????????????????????????? | | ???????????????????????????????????????????????? | | | | | | | | | | | | | +----------------------------------------------------+ Best States ------------- Heat Dissipation 219 Coolant Potential 65 Energy Generation 93 Energy Capacity 940 Matter Stores 300 Matter Capacity 300 Sight Range 24 Robot Scan Range 19 Terrain Scan Density 10 ECM Strength 1 Jamming Range 14 Cloak Strength 3 Power Amplification 30 Base Temperature (-) 150 Armor Coverage 600 Resistance: TH 10 Resistance: EM 20 Power Shielding 66 Utility Shielding 66 Weapon Shielding 100 Weapon Cycling 20 Evasion (%) 50 Targeting Accuracy 12 Target Analysis 12 Recoil Reduction 4 Particle Charging 20 Offensive Hacking 10 Item Schematics ----------------- Coolant Injector | -8/Storage | Hacked Med. Treads | -7/Zion | Archive Imp. Heavy Armor Plating | -7/Zion | Archive Matter Filter | -7/Zion | Archive Hpw. Shock Rifle | -7/Zion | Archive Lightning Gun | -7/Zion | Archive Lyr. Medium Armor Plating | -7/Zion | Archive Imp. Deuterium Engine | -7/Zion | Archive Imp. Transmission Jammer | -7/Zion | Archive Wave Gun | -7/Zion | Archive Flak Gun | -7/Zion | Archive IFF Parser | -7/Zion | Archive Kinecellerator | -7/Zion | Archive Adv. Heat Sink | -7/Zion | Archive Adv. Assault Cannon | -7/Zion | Archive Battle Cannon | -7/Zion | Free Flamer | -7/Zion | Free Barrage Gun | -7/Zion | Free Ripper | -7/Zion | Free Tactical Coordination Suite | -7/Zion | Free Hvy. Deuterium Engine | -6/Factory | Z-intel Antimatter Cannon | -6/Factory | Z-intel Force Rifle | -6/Factory | Z-intel Prc. Beam Rifle | -6/Factory | Z-intel Prc. Grenade Launcher | -6/Factory | Z-intel F-cell Engine | -6/Factory | Z-intel Imp. Lightning Gun | -6/Factory | Z-intel Imp. Heavy Laser | -6/Factory | Z-intel Cld. VTOL Module | -6/Factory | Z-intel Cld. Aerolev Unit | -6/Factory | Z-intel Aerolev Unit | -6/Factory | Z-intel Com. Ion Cannon | -6/Factory | Z-intel Combat Drone Bay | -6/Data Miner | Free Lgt. Regenerative Plating | -6/Data Miner | Free Cld. Gravmag System | -6/Data Miner | Free Exp. Heat Sink | -6/Data Miner | Free Mni. Smartbomb Launcher | -6/Data Miner | Free Imp. Linear Gravjet | -6/Data Miner | Free Imp. Cloaking Device | -6/Data Miner | Free Adv. Datajack | -6/Data Miner | Free Enh. Force Lance | -6/Data Miner | Free Adv. Remote Force Field | -6/Data Miner | Free Assault Drone Bay | -5/Zhirov | Free Exp. Optical Array | -5/Zhirov | Free Imp. Arc Thrower | -5/Zhirov | Free Arm. Huge Wheel | -4/Factory | Scanalyzed Adv. Myomer Leg | -3/Testing | Archive Exp. Terrain Scan Processor | -3/Testing | Archive Adv. Thermal Shield | -3/Testing | Z-intel Imp. Focal Shield | -3/Testing | Z-intel Imp. Weapon Shielding | -3/Testing | Z-intel Med. Storage Unit | -3/Testing | Z-intel Biometal Leg | -3/Testing | Z-intel Adv. Point Defense System | -3/Testing | Z-intel Imp. Sensor Array | -3/Testing | Z-intel Quantum Capacitor | -3/Testing | Z-intel Impulse Thruster | -3/Testing | Z-intel Adv. Reaction Control System | -3/Testing | Z-intel Energy Filter | -3/Testing | Z-intel Enh. Optical Array | -3/Testing | Z-intel Armor Integrity Analyzer | -3/Testing | Z-intel Robot Schematics ------------------ Y-54 Guardian | -7/Zion | Archive S-27 Virus | -7/Zion | Archive L-41 Fighter | -7/Zion | Archive Y-72 Warden | -7/Zion | Archive A-15 Conveyor | -6/Data Miner | Free G-50 Soldier | -6/Data Miner | Free O-32 Director | -6/Data Miner | Free G-67 Veteran | -6/Data Miner | Free H-77 Assassin | -6/Data Miner | Free R-06 Scavenger | -3/Testing | Archive Fabricated ------------ Exp. Heat Sink | x1 | -3/Proximity Caves Repaired ---------- Hrd. Heavy Armor Plating | 19% | -5/Factory Coolant Injector | 20% | -5/Factory | Broken Alien Tech Used ----------------- Integrated Dissipator Achievements -------------- Freeware Challenges ------------ None Game ------ Seed NuclearTrapComputer Manual? 0 Play Time 04:35:18 Cumulative 247.6 hours Start 2025.08.23 @ 09:06:56 End 2025.08.24 @ 12:06:01 Sessions 15 Manual Loads 0 Difficulty Rogue Special Mode None Game No. 171 Rogue 171 Adventurer 0 Explorer 0 Win Type - Total 2 Types 2/0/0/0/0/0/0/0/0/0 Lore% 71 Gallery% 68 Achievement% 58 Wizard Run 0 Options --------- Layout 1 ASCII 0 Keyboard 0 Movement Mouse Keybinds 0 Fullscreen 1 Font 32/SmallcapsGlow Map View 50x35 Zoom Use 0% Tactical HUD 1 Map Filters NONE Filters NONE Steam 1 RUN: f2a840e1-b417-4c41-9dde-3dd4766c6383